[Event "Titled Tuesday Blitz December 06 Early 2022"]
[White "Mgeladze, Tamaz"]
[Black "Manon-og, Ramon Jr."]
[WhiteFideId "13601202"]
[BlackFideId "5200776"]
[WhiteElo "2288"]
[BlackElo "2349"]
[Result "0-1"]
[Round "04"]
[TimeControl "180+1"]
[Date "2022.12.07"]
[WhiteClock "0:00:03"]
[BlackClock "0:00:19"]

1. c4 {[%clk 0:03:00]}  Nf6 {[%clk 0:02:56]} 2. Nc3 {[%clk 0:03:01]}  g6 {[%clk 0:02:56]} 3. g3 {[%clk 0:03:01]}  Bg7 {[%clk 0:02:55]} 4. Bg2 {[%clk 0:03:01]}  c6 {[%clk 0:02:56]} 5. Qb3 {[%clk 0:03:00]}  O-O {[%clk 0:02:56]} 6. Nf3 {[%clk 0:03:00]}  d5 {[%clk 0:02:55]} 7. d3 {[%clk 0:03:00]}  d4 {[%clk 0:02:45]} 8. Na4 {[%clk 0:03:00]}  Na6 {[%clk 0:02:39]} 9. O-O {[%clk 0:02:59]}  Re8 {[%clk 0:02:37]} 10. a3 {[%clk 0:02:55]}  Qc7 {[%clk 0:02:27]} 11. Bf4 {[%clk 0:02:54]}  e5 {[%clk 0:02:26]} 12. Bg5 {[%clk 0:02:55]}  b5 {[%clk 0:02:11]} 13. cxb5 {[%clk 0:02:51]}  cxb5 {[%clk 0:02:12]} 14. Qxb5 {[%clk 0:02:51]}  Rb8 {[%clk 0:02:12]} 15. Qc4 {[%clk 0:02:42]}  Qxc4 {[%clk 0:02:10]} 16. dxc4 {[%clk 0:02:43]}  Bd7 {[%clk 0:02:10]} 17. Nxe5 {[%clk 0:01:18]}  Bxa4 {[%clk 0:01:54]} 18. Nd3 {[%clk 0:01:00]}  Rxe2 {[%clk 0:01:50]} 19. b4 {[%clk 0:01:00]}  Rc2 {[%clk 0:01:34]} 20. c5 {[%clk 0:00:57]}  Bb5 {[%clk 0:01:33]} 21. Rfd1 {[%clk 0:00:56]}  Re8 {[%clk 0:01:17]} 22. Bf1 {[%clk 0:00:44]}  Ne4 {[%clk 0:01:14]} 23. a4 {[%clk 0:00:34]}  Bc4 {[%clk 0:00:54]} 24. Bf4 {[%clk 0:00:34]}  Nc3 {[%clk 0:00:50]} 25. Rdc1 {[%clk 0:00:23]}  Ne2+ {[%clk 0:00:41]} 26. Bxe2 {[%clk 0:00:23]}  Rexe2 {[%clk 0:00:42]} 27. Rxc2 {[%clk 0:00:18]}  Bxd3 {[%clk 0:00:39]} 28. Rxe2 {[%clk 0:00:16]}  Bxe2 {[%clk 0:00:40]} 29. Rb1 {[%clk 0:00:09]}  d3 {[%clk 0:00:33]} 30. Bd2 {[%clk 0:00:10]}  Bd4 {[%clk 0:00:32]} 31. Rc1 {[%clk 0:00:09]}  Kf8 {[%clk 0:00:27]} 32. Kg2 {[%clk 0:00:10]}  Ke7 {[%clk 0:00:26]} 33. c6 {[%clk 0:00:10]}  Nc7 {[%clk 0:00:26]} 34. b5 {[%clk 0:00:11]}  Bb2 {[%clk 0:00:21]} 35. Bb4+ {[%clk 0:00:10]}  Ke6 {[%clk 0:00:21]} 36. Rc4 {[%clk 0:00:09]}  d2 {[%clk 0:00:19]} 37. Re4+ {[%clk 0:00:08]}  Kd5 {[%clk 0:00:20]} 38. Rxe2 {[%clk 0:00:06]}  d1=Q {[%clk 0:00:20]} 39. Rd2+ {[%clk 0:00:07]}  Qxd2 {[%clk 0:00:20]} 40. Bxd2 {[%clk 0:00:08]}  Kc4 {[%clk 0:00:21]} 41. Bf4 {[%clk 0:00:07]}  Nd5 {[%clk 0:00:17]} 42. c7 {[%clk 0:00:07]}  Nxc7 {[%clk 0:00:17]} 43. Bxc7 {[%clk 0:00:07]}  Kb4 {[%clk 0:00:18]} 44. b6 {[%clk 0:00:07]}  axb6 {[%clk 0:00:19]} 45. Bxb6 {[%clk 0:00:07]}  Kxa4 {[%clk 0:00:19]} 46. Kf3 {[%clk 0:00:08]}  Kb5 {[%clk 0:00:20]} 47. Be3 {[%clk 0:00:08]}  Kc6 {[%clk 0:00:20]} 48. Ke4 {[%clk 0:00:09]}  Kd6 {[%clk 0:00:19]} 49. g4 {[%clk 0:00:09]}  Ke6 {[%clk 0:00:20]} 50. h4 {[%clk 0:00:10]}  Be5 {[%clk 0:00:19]} 51. h5 {[%clk 0:00:10]}  f5+ {[%clk 0:00:19]} 52. gxf5+ {[%clk 0:00:10]}  gxf5+ {[%clk 0:00:20]} 53. Kf3 {[%clk 0:00:10]}  Bd6 {[%clk 0:00:19]} 54. Kg2 {[%clk 0:00:10]}  f4 {[%clk 0:00:19]} 55. Bd4 {[%clk 0:00:09]}  Kf5 {[%clk 0:00:19]} 56. Kf3 {[%clk 0:00:09]}  Kg5 {[%clk 0:00:19]} 57. Bc3 {[%clk 0:00:04]}  Kxh5 {[%clk 0:00:20]} 58. Ke4 {[%clk 0:00:05]}  Kg4 {[%clk 0:00:20]} 59. f3+ {[%clk 0:00:06]}  Kg3 {[%clk 0:00:19]} 60. Bf6 {[%clk 0:00:03]}  h5 {[%clk 0:00:19]} 61. Kd5 {[%clk 0:00:03]}  Bb8 {[%clk 0:00:18]} 62. Ke4 {[%clk 0:00:03]}  h4 {[%clk 0:00:19]} 0-1


[Site "https://www.chess.com"]

[Event "Titled Tuesday Blitz December 06 Early 2022"]
[White "Miszler, Levente"]
[Black "Tasev, Dejan"]
[WhiteFideId "763276"]
[BlackFideId "936618"]
[WhiteElo "2176"]
[BlackElo "2253"]
[Result "0-1"]
[Round "04"]
[TimeControl "180+1"]
[Date "2022.12.07"]
[WhiteClock "0:00:13"]
[BlackClock "0:00:22"]

1. Nf3 {[%clk 0:03:00]}  Nf6 {[%clk 0:02:59]} 2. c4 {[%clk 0:02:55]}  g6 {[%clk 0:02:59]} 3. g3 {[%clk 0:02:53]}  Bg7 {[%clk 0:02:59]} 4. Bg2 {[%clk 0:02:53]}  O-O {[%clk 0:02:58]} 5. O-O {[%clk 0:02:54]}  b6 {[%clk 0:02:58]} 6. d4 {[%clk 0:02:53]}  Bb7 {[%clk 0:02:57]} 7. Nc3 {[%clk 0:02:53]}  e6 {[%clk 0:02:56]} 8. d5 {[%clk 0:02:53]}  exd5 {[%clk 0:02:56]} 9. cxd5 {[%clk 0:02:53]}  d6 {[%clk 0:02:56]} 10. e4 {[%clk 0:02:46]}  Re8 {[%clk 0:02:56]} 11. Re1 {[%clk 0:02:47]}  a5 {[%clk 0:02:50]} 12. Qc2 {[%clk 0:02:37]}  Na6 {[%clk 0:02:48]} 13. Be3 {[%clk 0:02:37]}  Nc5 {[%clk 0:02:42]} 14. Bd4 {[%clk 0:02:32]}  Nfd7 {[%clk 0:02:25]} 15. Bxg7 {[%clk 0:02:31]}  Kxg7 {[%clk 0:02:21]} 16. Nd4 {[%clk 0:02:26]}  Qf6 {[%clk 0:02:16]} 17. Rad1 {[%clk 0:02:25]}  Ba6 {[%clk 0:02:11]} 18. f4 {[%clk 0:02:23]}  Bb7 {[%clk 0:01:51]} 19. Nc6 {[%clk 0:02:02]}  Ba6 {[%clk 0:01:29]} 20. e5 {[%clk 0:01:40]}  dxe5 {[%clk 0:01:25]} 21. fxe5 {[%clk 0:01:15]}  Nxe5 {[%clk 0:01:23]} 22. Rf1 {[%clk 0:01:03]}  Bxf1 {[%clk 0:01:12]} 23. Rxf1 {[%clk 0:01:04]}  Qg5 {[%clk 0:01:04]} 24. Qf2 {[%clk 0:00:50]}  Ncd3 {[%clk 0:00:34]} 25. Qd4 {[%clk 0:00:50]}  f6 {[%clk 0:00:30]} 26. Ne4 {[%clk 0:00:47]}  Nxc6 {[%clk 0:00:29]} 27. dxc6 {[%clk 0:00:45]}  Rxe4 {[%clk 0:00:28]} 28. Bxe4 {[%clk 0:00:34]}  Ne5 {[%clk 0:00:28]} 29. Bg2 {[%clk 0:00:29]}  Rf8 {[%clk 0:00:25]} 30. Rd1 {[%clk 0:00:27]}  Rf7 {[%clk 0:00:25]} 31. Qe4 {[%clk 0:00:23]}  Qg4 {[%clk 0:00:24]} 32. Qxg4 {[%clk 0:00:19]}  Nxg4 {[%clk 0:00:25]} 33. Rd7 {[%clk 0:00:18]}  Ne5 {[%clk 0:00:23]} 34. Rd8 {[%clk 0:00:18]}  f5 {[%clk 0:00:22]} 35. Bd5 {[%clk 0:00:17]}  Re7 {[%clk 0:00:21]} 36. Rc8 {[%clk 0:00:16]}  Kf6 {[%clk 0:00:21]} 37. Kf2 {[%clk 0:00:16]}  Nd3+ {[%clk 0:00:21]} 38. Kf3 {[%clk 0:00:16]}  Nxb2 {[%clk 0:00:22]} 39. Bb3 {[%clk 0:00:14]}  Nd3 {[%clk 0:00:22]} 40. Rd8 {[%clk 0:00:13]}  Ne5+ {[%clk 0:00:22]} 41. Kf2 {[%clk 0:00:13]}  Nxc6 {[%clk 0:00:22]} 42. Bd5 {[%clk 0:00:13]}  Nxd8 {[%clk 0:00:22]} 0-1


[Site "https://www.chess.com"]

[Event "Titled Tuesday Blitz December 06 Early 2022"]
[White "Mkrtchian, Lilit"]
[Black "Atakishiyev, Elmar"]
[WhiteFideId "13300601"]
[BlackFideId "13410547"]
[WhiteElo "2316"]
[BlackElo "2193"]
[Result "0-1"]
[Round "04"]
[TimeControl "180+1"]
[Date "2022.12.07"]
[WhiteClock "0:00:04"]
[BlackClock "0:00:49"]

1. Nf3 {[%clk 0:02:58]}  Nf6 {[%clk 0:02:59]} 2. g3 {[%clk 0:02:57]}  d5 {[%clk 0:02:58]} 3. Bg2 {[%clk 0:02:57]}  e6 {[%clk 0:02:58]} 4. O-O {[%clk 0:02:55]}  Be7 {[%clk 0:02:57]} 5. d3 {[%clk 0:02:52]}  O-O {[%clk 0:02:57]} 6. a4 {[%clk 0:02:49]}  b6 {[%clk 0:02:56]} 7. a5 {[%clk 0:02:40]}  c5 {[%clk 0:02:55]} 8. axb6 {[%clk 0:02:38]}  Qxb6 {[%clk 0:02:54]} 9. e4 {[%clk 0:02:25]}  Bb7 {[%clk 0:02:53]} 10. e5 {[%clk 0:02:15]}  Nfd7 {[%clk 0:02:51]} 11. Re1 {[%clk 0:02:10]}  Nc6 {[%clk 0:02:48]} 12. Nc3 {[%clk 0:01:59]}  Rfc8 {[%clk 0:02:34]} 13. Na4 {[%clk 0:01:53]}  Qc7 {[%clk 0:02:33]} 14. Bf4 {[%clk 0:01:53]}  Nd4 {[%clk 0:02:23]} 15. h4 {[%clk 0:01:18]}  Nxf3+ {[%clk 0:02:16]} 16. Qxf3 {[%clk 0:01:16]}  Rab8 {[%clk 0:02:16]} 17. Qg4 {[%clk 0:01:15]}  d4 {[%clk 0:02:11]} 18. b3 {[%clk 0:01:10]}  Bxg2 {[%clk 0:02:08]} 19. Kxg2 {[%clk 0:01:11]}  Nb6 {[%clk 0:02:07]} 20. h5 {[%clk 0:01:06]}  Nd5 {[%clk 0:02:07]} 21. Bh6 {[%clk 0:00:59]}  g6 {[%clk 0:01:27]} 22. Bg5 {[%clk 0:00:47]}  Nb4 {[%clk 0:01:21]} 23. Re2 {[%clk 0:00:37]}  Qb7+ {[%clk 0:01:15]} 24. f3 {[%clk 0:00:36]}  Bxg5 {[%clk 0:01:14]} 25. Qxg5 {[%clk 0:00:36]}  Qd5 {[%clk 0:01:13]} 26. Rh1 {[%clk 0:00:24]}  Qd8 {[%clk 0:01:11]} 27. Qh6 {[%clk 0:00:20]}  Qf8 {[%clk 0:01:11]} 28. Qf4 {[%clk 0:00:20]}  Nd5 {[%clk 0:01:07]} 29. Qh4 {[%clk 0:00:20]}  Qg7 {[%clk 0:01:04]} 30. hxg6 {[%clk 0:00:16]}  fxg6 {[%clk 0:01:05]} 31. Nb2 {[%clk 0:00:15]}  Ne3+ {[%clk 0:01:05]} 32. Rxe3 {[%clk 0:00:16]}  dxe3 {[%clk 0:01:05]} 33. Nc4 {[%clk 0:00:16]}  e2 {[%clk 0:01:02]} 34. Qe4 {[%clk 0:00:16]}  Rf8 {[%clk 0:01:02]} 35. Qxe2 {[%clk 0:00:16]}  Rf5 {[%clk 0:01:01]} 36. Qe4 {[%clk 0:00:15]}  Rbf8 {[%clk 0:00:58]} 37. f4 {[%clk 0:00:15]}  g5 {[%clk 0:00:58]} 38. Nd6 {[%clk 0:00:11]}  gxf4 {[%clk 0:00:57]} 39. Rh3 {[%clk 0:00:11]}  Rxe5 {[%clk 0:00:54]} 40. Qf3 {[%clk 0:00:06]}  fxg3 {[%clk 0:00:54]} 41. Rxg3 {[%clk 0:00:06]}  Rxf3 {[%clk 0:00:52]} 42. Rxg7+ {[%clk 0:00:06]}  Kxg7 {[%clk 0:00:53]} 43. Kxf3 {[%clk 0:00:06]}  h5 {[%clk 0:00:51]} 44. Nc4 {[%clk 0:00:06]}  Rg5 {[%clk 0:00:50]} 45. Nd2 {[%clk 0:00:05]}  h4 {[%clk 0:00:51]} 46. Ne4 {[%clk 0:00:05]}  Rg6 {[%clk 0:00:50]} 47. Nf2 {[%clk 0:00:05]}  Kf6 {[%clk 0:00:50]} 48. Nh3 {[%clk 0:00:05]}  Rg3+ {[%clk 0:00:49]} 49. Kf4 {[%clk 0:00:04]}  Rxh3 {[%clk 0:00:49]} 0-1


[Site "https://www.chess.com"]

[Event "Titled Tuesday Blitz December 06 Early 2022"]
[White "Nugumanov, Bakhtiyar"]
[Black "Kvaloy, Aksel Bu"]
[WhiteFideId "13701797"]
[BlackFideId "1528815"]
[WhiteElo "2287"]
[BlackElo "2184"]
[Result "1-0"]
[Round "04"]
[TimeControl "180+1"]
[Date "2022.12.07"]
[WhiteClock "0:01:48"]
[BlackClock "0:01:40"]

1. e4 {[%clk 0:03:00]}  e5 {[%clk 0:02:57]} 2. Nf3 {[%clk 0:02:59]}  Nf6 {[%clk 0:02:56]} 3. Nc3 {[%clk 0:02:57]}  Nc6 {[%clk 0:02:54]} 4. d4 {[%clk 0:02:57]}  exd4 {[%clk 0:02:54]} 5. Nd5 {[%clk 0:02:57]}  Bc5 {[%clk 0:02:45]} 6. Bg5 {[%clk 0:02:53]}  d6 {[%clk 0:02:44]} 7. Bxf6 {[%clk 0:02:49]}  gxf6 {[%clk 0:02:39]} 8. Qd2 {[%clk 0:02:50]}  Bg4 {[%clk 0:02:25]} 9. Qf4 {[%clk 0:02:44]}  Bxf3 {[%clk 0:02:16]} 10. Nxf6+ {[%clk 0:02:40]}  Kf8 {[%clk 0:02:16]} 11. Qh6+ {[%clk 0:02:32]}  Ke7 {[%clk 0:02:16]} 12. Nd5+ {[%clk 0:02:32]}  Kd7 {[%clk 0:02:16]} 13. Qh3+ {[%clk 0:02:15]}  Ke8 {[%clk 0:02:15]} 14. gxf3 {[%clk 0:02:13]}  Ne5 {[%clk 0:02:04]} 15. f4 {[%clk 0:02:09]}  Ng6 {[%clk 0:02:01]} 16. f5 {[%clk 0:02:08]}  Ne5 {[%clk 0:01:56]} 17. f4 {[%clk 0:01:59]}  c6 {[%clk 0:01:54]} 18. fxe5 {[%clk 0:01:56]}  cxd5 {[%clk 0:01:54]} 19. Bb5+ {[%clk 0:01:57]}  Kf8 {[%clk 0:01:39]} 20. Qh6+ {[%clk 0:01:50]}  Ke7 {[%clk 0:01:39]} 21. Qf6+ {[%clk 0:01:50]}  Kf8 {[%clk 0:01:39]} 22. Qxh8+ {[%clk 0:01:48]}  Ke7 {[%clk 0:01:39]} 23. Qf6+ {[%clk 0:01:47]}  Kf8 {[%clk 0:01:40]} 24. Qh6+ {[%clk 0:01:48]}  Ke7 {[%clk 0:01:39]} 25. f6+ {[%clk 0:01:49]}  Ke6 {[%clk 0:01:39]} 26. Qh3+ {[%clk 0:01:47]}  Kxe5 {[%clk 0:01:40]} 27. Qf5# {[%clk 0:01:48]} 1-0


[Site "https://www.chess.com"]

[Event "Titled Tuesday Blitz December 06 Early 2022"]
[White "Ohanyan, Emin"]
[Black "Moksh Amit Doshi"]
[WhiteFideId "13312022"]
[BlackFideId "25064967"]
[WhiteElo "2352"]
[BlackElo "2297"]
[Result "1-0"]
[Round "04"]
[TimeControl "180+1"]
[Date "2022.12.07"]
[WhiteClock "0:00:33"]
[BlackClock "0:00:01"]

1. e4 {[%clk 0:02:54]}  c5 {[%clk 0:02:57]} 2. Nf3 {[%clk 0:02:54]}  d6 {[%clk 0:02:57]} 3. d4 {[%clk 0:02:55]}  cxd4 {[%clk 0:02:58]} 4. Nxd4 {[%clk 0:02:56]}  Nf6 {[%clk 0:02:58]} 5. Nc3 {[%clk 0:02:56]}  a6 {[%clk 0:02:59]} 6. Bc4 {[%clk 0:02:57]}  e6 {[%clk 0:02:58]} 7. Bb3 {[%clk 0:02:57]}  Nbd7 {[%clk 0:02:56]} 8. f4 {[%clk 0:02:58]}  Nc5 {[%clk 0:02:56]} 9. f5 {[%clk 0:02:58]}  e5 {[%clk 0:02:30]} 10. Nde2 {[%clk 0:02:58]}  Be7 {[%clk 0:02:30]} 11. Ng3 {[%clk 0:02:59]}  b5 {[%clk 0:02:27]} 12. Nh5 {[%clk 0:02:59]}  Nxh5 {[%clk 0:02:16]} 13. Qxh5 {[%clk 0:03:00]}  Nxb3 {[%clk 0:02:15]} 14. axb3 {[%clk 0:02:59]}  Bb7 {[%clk 0:02:15]} 15. O-O {[%clk 0:02:57]}  h6 {[%clk 0:01:47]} 16. Be3 {[%clk 0:02:51]}  Bg5 {[%clk 0:01:47]} 17. Bf2 {[%clk 0:02:46]}  O-O {[%clk 0:01:40]} 18. Rfd1 {[%clk 0:02:40]}  Rc8 {[%clk 0:01:36]} 19. Qe2 {[%clk 0:02:33]}  Qc7 {[%clk 0:01:28]} 20. h4 {[%clk 0:02:31]}  Be7 {[%clk 0:01:25]} 21. Rd2 {[%clk 0:02:31]}  Rfd8 {[%clk 0:01:19]} 22. Nd5 {[%clk 0:02:29]}  Bxd5 {[%clk 0:01:18]} 23. exd5 {[%clk 0:02:30]}  Qb7 {[%clk 0:01:11]} 24. Qe4 {[%clk 0:02:28]}  Re8 {[%clk 0:01:11]} 25. g3 {[%clk 0:02:26]}  Bd8 {[%clk 0:01:10]} 26. c3 {[%clk 0:02:22]}  f6 {[%clk 0:01:08]} 27. Kg2 {[%clk 0:02:22]}  Bb6 {[%clk 0:01:08]} 28. Be1 {[%clk 0:02:20]}  a5 {[%clk 0:00:55]} 29. g4 {[%clk 0:02:18]}  a4 {[%clk 0:00:55]} 30. Qe2 {[%clk 0:02:04]}  e4 {[%clk 0:00:37]} 31. Qxb5 {[%clk 0:02:00]}  e3 {[%clk 0:00:38]} 32. Re2 {[%clk 0:01:58]}  axb3 {[%clk 0:00:38]} 33. Ra6 {[%clk 0:01:54]}  Rb8 {[%clk 0:00:35]} 34. Bg3 {[%clk 0:01:53]}  Qe7 {[%clk 0:00:34]} 35. Qd3 {[%clk 0:01:38]}  Bc5 {[%clk 0:00:30]} 36. Kf3 {[%clk 0:01:36]}  h5 {[%clk 0:00:28]} 37. gxh5 {[%clk 0:01:35]}  Qf7 {[%clk 0:00:28]} 38. Kg4 {[%clk 0:01:35]}  Ra8 {[%clk 0:00:22]} 39. Rxa8 {[%clk 0:01:30]}  Rxa8 {[%clk 0:00:23]} 40. Bf4 {[%clk 0:01:29]}  Ra4 {[%clk 0:00:22]} 41. c4 {[%clk 0:01:27]}  Qe7 {[%clk 0:00:12]} 42. Qxb3 {[%clk 0:01:17]}  Rb4 {[%clk 0:00:09]} 43. Qd3 {[%clk 0:01:18]}  Qb7 {[%clk 0:00:09]} 44. Bxe3 {[%clk 0:01:14]}  Rb3 {[%clk 0:00:09]} 45. Qe4 {[%clk 0:01:15]}  Rxe3 {[%clk 0:00:08]} 46. Rxe3 {[%clk 0:01:15]}  Bxe3 {[%clk 0:00:09]} 47. Qxe3 {[%clk 0:01:09]}  Qxb2 {[%clk 0:00:08]} 48. Qe4 {[%clk 0:00:40]}  Kh7 {[%clk 0:00:05]} 49. Kf3 {[%clk 0:00:38]}  Qc3+ {[%clk 0:00:04]} 50. Ke2 {[%clk 0:00:39]}  Qg3 {[%clk 0:00:04]} 51. Kd2 {[%clk 0:00:32]}  Qf2+ {[%clk 0:00:03]} 52. Kc3 {[%clk 0:00:32]}  Qc5 {[%clk 0:00:02]} 53. Kb3 {[%clk 0:00:32]}  Qb6+ {[%clk 0:00:02]} 54. Kc2 {[%clk 0:00:33]}  Qf2+ {[%clk 0:00:01]} 55. Kc3 {[%clk 0:00:33]} 1-0


[Site "https://www.chess.com"]

[Event "Titled Tuesday Blitz December 06 Early 2022"]
[White "Ovchinnikov, Vsevolod"]
[Black "Tatarinov, Dmitry"]
[WhiteFideId "24176842"]
[BlackFideId "24160067"]
[WhiteElo "2376"]
[BlackElo "2326"]
[Result "1-0"]
[Round "04"]
[TimeControl "180+1"]
[Date "2022.12.07"]
[WhiteClock "0:00:05"]
[BlackClock "0:00:33"]

1. d4 {[%clk 0:03:00]}  Nf6 {[%clk 0:03:00]} 2. c4 {[%clk 0:03:01]}  g6 {[%clk 0:03:00]} 3. Nc3 {[%clk 0:03:01]}  Bg7 {[%clk 0:03:00]} 4. e4 {[%clk 0:03:01]}  O-O {[%clk 0:03:01]} 5. Nf3 {[%clk 0:03:02]}  c5 {[%clk 0:03:01]} 6. d5 {[%clk 0:03:02]}  d6 {[%clk 0:03:02]} 7. h3 {[%clk 0:03:00]}  e6 {[%clk 0:03:02]} 8. Bd3 {[%clk 0:03:00]}  Na6 {[%clk 0:03:02]} 9. O-O {[%clk 0:02:53]}  Nc7 {[%clk 0:03:02]} 10. Re1 {[%clk 0:02:39]}  e5 {[%clk 0:03:01]} 11. Bg5 {[%clk 0:02:38]}  h6 {[%clk 0:02:57]} 12. Bd2 {[%clk 0:02:38]}  Nfe8 {[%clk 0:02:46]} 13. Qc1 {[%clk 0:02:28]}  Kh7 {[%clk 0:02:45]} 14. Nh2 {[%clk 0:02:10]}  Rb8 {[%clk 0:02:45]} 15. Nf1 {[%clk 0:01:57]}  a6 {[%clk 0:02:42]} 16. a4 {[%clk 0:01:57]}  b6 {[%clk 0:02:41]} 17. Ng3 {[%clk 0:01:48]}  h5 {[%clk 0:02:30]} 18. Bg5 {[%clk 0:01:44]}  Bf6 {[%clk 0:02:29]} 19. Bd2 {[%clk 0:01:41]}  Ng7 {[%clk 0:02:24]} 20. Re2 {[%clk 0:01:33]}  Bd7 {[%clk 0:02:22]} 21. b3 {[%clk 0:01:30]}  h4 {[%clk 0:02:20]} 22. Nf1 {[%clk 0:01:29]}  Nh5 {[%clk 0:02:20]} 23. Re1 {[%clk 0:01:04]}  Nf4 {[%clk 0:02:19]} 24. Bc2 {[%clk 0:01:01]}  Bg5 {[%clk 0:02:18]} 25. Ne3 {[%clk 0:01:00]}  Ne8 {[%clk 0:02:15]} 26. Kh1 {[%clk 0:00:49]}  Nf6 {[%clk 0:02:11]} 27. Rg1 {[%clk 0:00:44]}  N6h5 {[%clk 0:02:10]} 28. Qf1 {[%clk 0:00:40]}  Qe7 {[%clk 0:02:02]} 29. Bd1 {[%clk 0:00:35]}  Kg7 {[%clk 0:02:00]} 30. Ra2 {[%clk 0:00:27]}  Rh8 {[%clk 0:02:00]} 31. Bg4 {[%clk 0:00:22]}  Be8 {[%clk 0:01:56]} 32. Qd1 {[%clk 0:00:21]}  Nf6 {[%clk 0:01:54]} 33. Bf3 {[%clk 0:00:22]}  Bd7 {[%clk 0:01:54]} 34. Kh2 {[%clk 0:00:20]}  a5 {[%clk 0:01:48]} 35. Bc1 {[%clk 0:00:18]}  Rbf8 {[%clk 0:01:49]} 36. Ne2 {[%clk 0:00:16]}  N6h5 {[%clk 0:01:48]} 37. Rc2 {[%clk 0:00:14]}  f5 {[%clk 0:01:47]} 38. Kh1 {[%clk 0:00:12]}  Nxe2 {[%clk 0:01:47]} 39. Qxe2 {[%clk 0:00:12]}  Bxe3 {[%clk 0:01:43]} 40. Bxe3 {[%clk 0:00:11]}  f4 {[%clk 0:01:43]} 41. Bc1 {[%clk 0:00:12]}  Ng3+ {[%clk 0:01:43]} 42. fxg3 {[%clk 0:00:10]}  hxg3 {[%clk 0:01:43]} 43. Rd1 {[%clk 0:00:09]}  Rh4 {[%clk 0:01:37]} 44. Kg1 {[%clk 0:00:09]}  Rfh8 {[%clk 0:01:37]} 45. Kf1 {[%clk 0:00:09]}  g5 {[%clk 0:01:38]} 46. Ke1 {[%clk 0:00:09]}  g4 {[%clk 0:01:32]} 47. hxg4 {[%clk 0:00:09]}  Qg5 {[%clk 0:01:23]} 48. Kd2 {[%clk 0:00:10]}  Rxg4 {[%clk 0:01:20]} 49. Kd3 {[%clk 0:00:09]}  Rgh4 {[%clk 0:01:20]} 50. Bd2 {[%clk 0:00:08]}  Be8 {[%clk 0:01:20]} 51. Rcc1 {[%clk 0:00:08]}  Bg6 {[%clk 0:01:20]} 52. Rf1 {[%clk 0:00:08]}  Rh2 {[%clk 0:01:21]} 53. Rce1 {[%clk 0:00:08]}  R8h4 {[%clk 0:01:21]} 54. Kc3 {[%clk 0:00:09]}  Bh5 {[%clk 0:01:21]} 55. Bc1 {[%clk 0:00:07]}  Bxf3 {[%clk 0:01:21]} 56. Rxf3 {[%clk 0:00:08]}  Qg4 {[%clk 0:01:21]} 57. Bd2 {[%clk 0:00:07]}  Rh1 {[%clk 0:01:16]} 58. Kd3 {[%clk 0:00:07]}  Rxe1 {[%clk 0:01:16]} 59. Qxe1 {[%clk 0:00:08]}  Rh2 {[%clk 0:01:16]} 60. Qe2 {[%clk 0:00:08]}  Rh1 {[%clk 0:01:11]} 61. Bc3 {[%clk 0:00:09]}  Rb1 {[%clk 0:01:08]} 62. Kc2 {[%clk 0:00:08]}  Rg1 {[%clk 0:01:08]} 63. Kd3 {[%clk 0:00:08]}  Qg6 {[%clk 0:01:07]} 64. Rxf4 {[%clk 0:00:06]}  Kh7 {[%clk 0:00:53]} 65. Rg4 {[%clk 0:00:06]}  Qh5 {[%clk 0:00:39]} 66. Rxg3 {[%clk 0:00:06]}  Rd1+ {[%clk 0:00:39]} 67. Bd2 {[%clk 0:00:04]}  Qxe2+ {[%clk 0:00:33]} 68. Kxe2 {[%clk 0:00:05]}  Rb1 {[%clk 0:00:34]} 69. Be1 {[%clk 0:00:03]}  Rb2+ {[%clk 0:00:34]} 70. Bd2 {[%clk 0:00:04]}  Rb1 {[%clk 0:00:34]} 71. Rf3 {[%clk 0:00:04]}  Kg6 {[%clk 0:00:35]} 72. g4 {[%clk 0:00:04]}  Kg7 {[%clk 0:00:34]} 73. g5 {[%clk 0:00:04]}  Rg1 {[%clk 0:00:34]} 74. Kd3 {[%clk 0:00:04]}  Rb1 {[%clk 0:00:33]} 75. Kc2 {[%clk 0:00:05]}  Re1 {[%clk 0:00:33]} 76. Rf6 {[%clk 0:00:05]}  Rxe4 {[%clk 0:00:33]} 77. Rxd6 {[%clk 0:00:05]}  Rg4 {[%clk 0:00:31]} 78. Rxb6 {[%clk 0:00:05]}  Rg2 {[%clk 0:00:32]} 79. Re6 {[%clk 0:00:05]}  Re2 {[%clk 0:00:32]} 80. d6 {[%clk 0:00:05]}  e4 {[%clk 0:00:32]} 81. d7 {[%clk 0:00:05]}  e3 {[%clk 0:00:33]} 82. Rxe3 {[%clk 0:00:05]} 1-0


[Site "https://www.chess.com"]

[Event "Titled Tuesday Blitz December 06 Early 2022"]
[White "Paiva, Henrique M A Albergaria"]
[Black "Volkov, Maksim"]
[WhiteFideId "1920995"]
[BlackFideId "54123070"]
[WhiteElo "1993"]
[BlackElo "2257"]
[Result "0-1"]
[Round "04"]
[TimeControl "180+1"]
[Date "2022.12.07"]
[WhiteClock "0:01:17"]
[BlackClock "0:01:39"]

1. e4 {[%clk 0:03:00]}  c5 {[%clk 0:02:57]} 2. Nf3 {[%clk 0:02:59]}  d6 {[%clk 0:02:57]} 3. Nc3 {[%clk 0:02:59]}  Nf6 {[%clk 0:02:56]} 4. d4 {[%clk 0:02:58]}  cxd4 {[%clk 0:02:56]} 5. Nxd4 {[%clk 0:02:58]}  a6 {[%clk 0:02:56]} 6. Be2 {[%clk 0:02:58]}  e5 {[%clk 0:02:55]} 7. Nb3 {[%clk 0:02:59]}  Be7 {[%clk 0:02:55]} 8. Be3 {[%clk 0:02:59]}  Be6 {[%clk 0:02:53]} 9. O-O {[%clk 0:03:00]}  O-O {[%clk 0:02:53]} 10. Bf3 {[%clk 0:03:00]}  Qc7 {[%clk 0:02:45]} 11. a4 {[%clk 0:02:58]}  Rc8 {[%clk 0:02:38]} 12. a5 {[%clk 0:02:57]}  Nbd7 {[%clk 0:02:37]} 13. Re1 {[%clk 0:02:52]}  b5 {[%clk 0:02:29]} 14. axb6 {[%clk 0:02:49]}  Nxb6 {[%clk 0:02:28]} 15. Nd2 {[%clk 0:02:50]}  Qb7 {[%clk 0:02:19]} 16. Rb1 {[%clk 0:02:38]}  Nbd7 {[%clk 0:02:14]} 17. Nf1 {[%clk 0:02:33]}  h6 {[%clk 0:02:12]} 18. Ng3 {[%clk 0:02:13]}  Bf8 {[%clk 0:02:09]} 19. Nh5 {[%clk 0:01:59]}  Nxh5 {[%clk 0:02:04]} 20. Bxh5 {[%clk 0:02:00]}  Nf6 {[%clk 0:02:03]} 21. Bf3 {[%clk 0:01:59]}  Rab8 {[%clk 0:02:00]} 22. Nd5 {[%clk 0:01:58]}  Nxd5 {[%clk 0:01:57]} 23. exd5 {[%clk 0:01:59]}  Bf5 {[%clk 0:01:57]} 24. Re2 {[%clk 0:01:35]}  e4 {[%clk 0:01:56]} 25. Bh5 {[%clk 0:01:33]}  g6 {[%clk 0:01:56]} 26. g4 {[%clk 0:01:33]}  Bd7 {[%clk 0:01:55]} 27. Kh1 {[%clk 0:01:26]}  gxh5 {[%clk 0:01:55]} 28. gxh5 {[%clk 0:01:27]}  Bg7 {[%clk 0:01:48]} 29. Qg1 {[%clk 0:01:25]}  Kh7 {[%clk 0:01:48]} 30. c3 {[%clk 0:01:25]}  Rg8 {[%clk 0:01:45]} 31. Qe1 {[%clk 0:01:23]}  Bg4 {[%clk 0:01:40]} 32. Bd4 {[%clk 0:01:17]}  Bf3+ {[%clk 0:01:39]} 0-1


[Site "https://www.chess.com"]